bitfinex/quotes_ETHUSD_20251120
["timestamp","ask_amount","ask_price","bid_price","bid_amount"]
[1763658602150,0.77729513,2837.5,2835.6,0.001]
[1763658602351,0.31179513,2837.4,2835.9,0.4603]
[1763658602550,0.77729513,2837.8,2835.9,0.4603]
[1763658602785,0.1,2836.9,2835.6,0.001]
[1763658602930,0.1,2836.8,2835.6,0.4613]
[1763658603131,0.77729513,2837.7,2835.6,0.4613]
[1763658603132,0.90699264,2837.5,2835.6,0.001]
[1763658603331,0.57073165,2837.4,2835.6,0.001]
[1763658603531,0.1,2836.6,2835.6,0.001]
[1763658603827,0.4655,2837.3,2835.6,0.001]
[1763658603828,0.31179513,2837.2,2835.6,0.001]
[1763658604058,0.1,2836.5,2835.6,0.001]
[1763658604428,0.1,2836.4,2835.6,0.001]
[1763658604635,0.1,2836.2,2835.6,0.001]
[1763658605075,0.1019,2836.5,2833.3,0.4603]
[1763658605076,1.31249664,2835.9,2833.3,0.4603]
[1763658605280,1.31249664,2835.9,2832.7,0.1889]
[1763658605281,0.1,2834.1,2832.8,0.5963]
[1763658605480,0.1,2835.1,2835.0,0.001]
[1763658605633,10.37609908,2835.1,2835.0,0.001]
[1763658605941,10.37609908,2835.1,2833.4,0.4603]
[1763658605942,0.1,2834.6,2833.4,0.4603]
[1763658606141,0.1,2834.5,2833.4,0.4603]
[1763658606343,0.4655,2836.2,2834.0,7.46885352]
[1763658606660,0.1898,2836.9,2834.6,0.90699264]
[1763658606877,0.65330776,2836.4,2834.7,0.83758462]
[1763658607044,0.55330776,2836.4,2835.1,0.90699264]
[1763658607245,0.55330776,2836.4,2834.1,0.92392655]
[1763658607246,0.1009,2836.3,2834.8,0.4603]
[1763658607449,0.1,2835.2,2833.5,0.136]
[1763658607634,0.87746652,2836.3,2833.6,0.4603]
[1763658607833,0.1,2835.4,2833.6,0.4603]
[1763658608076,0.31106652,2836.2,2833.6,0.4603]
[1763658608077,1.31249664,2835.5,2833.6,0.4603]
[1763658608246,1.31249664,2835.5,2833.5,0.136]
[1763658608247,0.31106652,2835.4,2833.7,0.4976]
[1763658608449,0.1,2834.0,2833.5,0.136]
[1763658608632,0.4547,2834.6,2832.6,0.6336]
[1763658608829,7.46885352,2835.1,2832.8,0.4976]
[1763658608830,0.31023721,2834.9,2832.8,0.4976]
[1763658609153,0.1,2834.0,2832.8,0.4976]
[1763658609366,3.52696363,2835.3,2832.8,0.4976]
[1763658609369,0.4547,2835.5,2833.0,7.46885352]
[1763658609532,0.405504,2836.1,2833.1,1.65387799]
[1763658609533,0.1,2834.6,2833.1,1.65387799]
[1763658609902,0.90699264,2835.0,2832.3,0.6865]
[1763658610059,0.90699264,2835.0,2832.4,0.03530574]
[1763658610060,0.30983036,2834.9,2832.4,0.03530574]
[1763658610230,0.405504,2834.8,2832.4,0.4976]
[1763658610729,3.52682825,2835.5,2833.3,0.405504]
[1763658610730,0.4547,2835.5,2833.3,0.405504]
[1763658610874,0.4547,2835.5,2833.7,1.31249664]
[1763658610875,0.1,2835.5,2833.7,1.31249664]
[1763658611203,0.1,2835.7,2833.8,1.56813502]
[1763658611379,0.4547,2835.9,2833.8,0.69]
[1763658611779,0.405504,2835.8,2833.8,0.69]
[1763658611982,0.1,2834.8,2833.8,0.69]
[1763658612179,0.1,2834.4,2833.3,0.1924]
[1763658612593,0.4547,2834.4,2833.1,0.136]
[1763658612786,0.1,2833.5,2833.1,0.136]
[1763658612981,0.405504,2834.3,2832.1,0.4976]
[1763658613194,0.1,2833.2,2832.1,0.4976]
[1763658613416,0.1,2833.2,2831.8,0.136]
[1763658613417,1.31249664,2834.0,2831.8,0.136]
[1763658613681,0.1,2833.3,2832.1,0.4976]
[1763658613886,0.4547,2834.9,2832.5,7.46885352]
[1763658614194,3.98217791,2834.9,2832.1,0.4976]
[1763658614435,0.90699264,2834.6,2832.3,0.1924]
[1763658614719,0.1,2833.6,2832.4,0.4976]
[1763658614933,0.55375309,2834.3,2832.7,0.405504]
[1763658614934,0.65375309,2834.3,2832.7,0.405504]
[1763658615078,0.69552963,2836.1,2833.2,0.90699264]
[1763658615279,0.65362547,2834.8,2833.3,1.47118462]
[1763658615485,0.55362547,2834.8,2833.3,1.47118462]
[1763658615700,0.4547,2834.7,2833.3,0.136]
[1763658615922,0.1,2834.1,2833.3,0.136]
[1763658616094,0.4547,2834.7,2832.8,0.4976]
[1763658616095,0.1,2833.8,2832.8,0.4976]
[1763658616284,0.1,2834.1,2832.8,0.4976]
[1763658616512,0.55362547,2834.8,2832.8,0.4976]
[1763658616825,0.1,2834.7,2833.2,0.90699264]
[1763658617028,0.65362388,2834.7,2833.3,0.83758462]
[1763658617194,0.1,2834.1,2832.8,0.4976]
[1763658617384,0.1,2834.1,2832.9,0.4976]
[1763658617591,0.1,2834.4,2833.0,7.46885352]
[1763658617898,0.1,2834.3,2833.1,0.4976]
[1763658618098,0.1,2834.3,2833.2,0.79664535]
[1763658618303,0.55362388,2834.7,2833.5,7.46885352]
[1763658618494,0.55362388,2834.7,2833.6,1.04299264]
[1763658618823,0.55362388,2834.7,2833.6,1.54059264]
[1763658619041,0.1,2835.5,2834.1,0.90699264]
[1763658619391,0.55351026,2835.6,2834.2,0.4976]
[1763658619740,0.1137,2837.8,2835.5,7.66125352]
[1763658620046,8.37393091,2839.1,2836.2,0.405504]
[1763658620049,0.55323588,2837.2,2836.2,0.405504]
[1763658620228,0.1,2838.5,2836.6,0.90699264]
[1763658620430,0.1137,2839.3,2836.7,0.69]
[1763658620431,0.1,2838.1,2836.7,0.69]
[1763658620741,0.55300596,2837.6,2837.2,0.90699264]
[1763658620937,0.1,2839.0,2837.6,7.46885352]
[1763658621254,0.1,2838.1,2836.9,0.4976]
[1763658621544,0.1,2837.9,2836.6,0.136]
[1763658621842,0.1,2837.9,2836.6,0.6336]
[1763658621991,0.1,2837.8,2836.6,0.6336]
[1763658622442,0.1,2837.7,2836.6,0.6336]
[1763658622743,0.1,2837.8,2836.7,0.4976]
[1763658622891,0.4547,2839.0,2836.7,0.4976]
[1763658623210,0.1,2837.5,2836.8,0.136]
[1763658623545,0.1,2837.6,2836.8,0.136]
[1763658624050,0.1,2837.1,2836.8,0.136]
[1763658624347,0.1,2837.3,2836.0,7.46885352]
[1763658624656,0.1,2837.3,2833.3,2.46814497]
[1763658624657,1.12289442,2837.8,2835.6,0.136]
[1763658624832,1.12289442,2837.8,2833.1,0.001]
[1763658624833,0.1139,2836.1,2834.3,0.4976]
[1763658624993,0.1,2835.1,2834.3,0.4976]
[1763658625320,0.1,2834.8,2834.0,0.136]
[1763658625540,0.1139,2836.1,2834.0,0.136]
[1763658625541,0.1,2834.3,2834.0,0.136]
[1763658625694,0.405504,2835.8,2833.1,0.001]
[1763658625695,0.4547,2834.2,2833.1,0.001]
[1763658625896,0.1,2833.6,2833.1,0.001]
[1763658626252,0.4547,2834.2,2833.1,0.001]
[1763658626392,0.1,2833.4,2833.1,0.001]
[1763658626706,0.4547,2834.2,2833.1,0.001]
[1763658626707,0.90699264,2834.1,2833.1,0.001]
[1763658626910,0.1,2833.7,2833.1,0.001]
[1763658627132,0.1,2833.2,2833.1,0.001]
[1763658627732,0.94370604,2834.0,2833.1,0.001]
[1763658627932,0.1,2833.4,2833.1,0.001]
[1763658628133,0.405504,2834.2,2833.1,0.001]
[1763658628134,0.1,2833.2,2833.1,0.001]
[1763658628630,0.31023761,2833.8,2833.1,0.001]
[1763658628631,0.1,2833.8,2833.1,0.001]
[1763658629039,0.42400572,2835.3,2833.2,0.6336]
[1763658629351,0.90507739,2836.2,2833.2,0.6336]
[1763658629352,0.1,2835.5,2833.2,0.6336]
[1763658629489,0.4547,2836.0,2833.3,0.4976]
[1763658629694,0.1,2834.5,2833.3,0.4976]
[1763658630132,0.1137,2834.9,2833.2,0.136]
[1763658630436,0.1,2834.3,2833.2,0.136]
[1763658630820,0.4665,2834.8,2833.2,0.5912]
[1763658631001,0.1,2834.3,2833.2,0.5912]
[1763658631197,0.1,2835.1,2833.5,0.90699264]
[1763658631531,0.31066211,2835.9,2833.6,1.29278462]
[1763658631704,0.1,2835.3,2833.9,7.46885352]
[1763658631907,0.1,2835.3,2833.7,0.4552]
[1763658632227,0.31066211,2835.8,2833.8,0.1965]
[1763658632429,0.1,2834.7,2833.8,0.1965]
[1763658632631,0.5802,2834.9,2833.1,0.4562]
[1763658632832,0.5802,2834.9,2833.1,6.64655422]
[1763658632833,0.1,2834.3,2833.1,6.64655422]
[1763658633137,0.5802,2834.9,2833.2,0.66465542]
[1763658633138,0.1,2834.5,2833.2,0.66465542]
[1763658633295,0.1,2834.5,2833.3,0.4552]
[1763658633495,0.1137,2834.9,2833.3,0.4552]
[1763658633701,0.1,2834.6,2833.3,0.4552]
[1763658633938,0.5802,2834.9,2833.3,0.4552]
[1763658634118,0.5802,2834.9,2833.1,0.001]
[1763658634119,0.1,2833.9,2833.1,0.001]
[1763658634320,0.31134286,2834.8,2833.1,0.4562]
[1763658634639,0.1,2834.0,2833.1,0.001]
[1763658634799,0.31086496,2834.7,2833.1,0.001]
[1763658635136,0.4665,2834.8,2833.1,0.4562]
[1763658635137,0.31086496,2834.8,2833.1,0.4562]
[1763658635349,0.1,2834.9,2833.4,6.19035422]
[1763658635553,0.1,2834.4,2833.5,0.61903542]
[1763658635828,0.1137,2834.9,2833.1,0.4562]
[1763658635829,0.1,2834.3,2833.1,0.4562]
[1763658636632,0.31053432,2834.7,2833.1,0.4562]
[1763658636805,0.1,2834.3,2833.1,0.4562]
[1763658636996,0.1,2834.1,2833.1,0.4562]
[1763658637206,0.77703432,2834.7,2833.1,0.001]
[1763658637397,0.1,2834.1,2833.1,0.001]
[1763658637838,0.405504,2834.6,2833.1,0.001]
[1763658638157,0.2453,2833.2,2833.1,0.001]
[1763658638311,0.1,2833.5,2833.1,0.001]
[1763658638499,7.51042377,2834.9,2833.1,0.03629702]
[1763658638500,0.4591,2834.4,2833.1,0.03629702]
[1763658638699,0.4591,2834.4,2833.1,0.001]
[1763658639835,0.1,2833.8,2833.1,0.001]
[1763658640236,0.1137,2834.9,2833.1,0.4956]
[1763658640446,0.4591,2834.8,2833.1,0.001]
[1763658640639,0.30988868,2834.8,2833.5,0.90699264]
[1763658640824,0.1,2835.1,2833.9,6.19035422]
[1763658641026,0.1139,2836.1,2834.0,0.135]
[1763658641227,0.1,2835.0,2834.0,0.6296]
[1763658641400,0.5,2834.7,2834.0,0.135]
[1763658641600,0.1137,2834.1,2832.0,1.0]
[1763658641847,0.405504,2834.0,2832.1,0.689]
[1763658642011,0.1,2833.2,2832.0,1.0]
[1763658642627,0.1,2833.3,2832.4,0.4946]
[1763658642828,0.1137,2834.1,2832.4,0.4946]
[1763658642829,0.5728,2834.1,2832.4,0.4946]
[1763658643139,0.1,2833.2,2832.0,1.0]
[1763658643529,0.1,2833.2,2832.1,0.1944]
[1763658644025,0.1,2833.2,2832.0,1.0]
[1763658644241,0.1,2833.2,2832.1,0.1944]
[1763658644541,0.4591,2833.8,2832.2,0.4946]
[1763658644844,0.1137,2834.1,2832.7,0.4946]
[1763658645008,0.1,2833.7,2832.7,0.4946]
[1763658645342,0.4591,2833.6,2832.0,1.0]
[1763658645502,0.405504,2833.1,2832.0,1.0]
[1763658645705,0.1,2832.9,2832.0,1.0]
[1763658645926,0.1137,2833.2,2832.0,1.0]
[1763658646247,0.405504,2833.1,2832.0,1.0]
[1763658646454,0.1,2832.2,2832.0,1.0]
[1763658646752,0.1,2832.6,2832.0,1.0]
[1763658647044,0.1137,2833.2,2832.0,1.0]
[1763658647045,0.1,2832.5,2832.0,1.0]
[1763658647254,0.1137,2833.2,2832.0,1.0]
[1763658647404,1.31249664,2833.0,2832.0,1.0]
[1763658647608,0.1,2832.1,2832.0,1.0]
[1763658649462,0.4591,2834.1,2832.0,1.4946]
[1763658649668,0.4591,2835.0,2832.6,0.90699264]
[1763658649818,0.9591,2834.7,2832.7,0.689]
[1763658650026,0.1,2833.9,2832.7,0.689]
[1763658650228,0.1,2833.9,2832.8,0.4946]
[1763658650725,0.1,2833.9,2832.9,0.4946]
[1763658651258,0.4591,2834.3,2832.7,0.1944]
[1763658651490,0.1,2833.5,2832.7,0.1944]
[1763658651622,0.5,2834.7,2832.8,0.4946]
[1763658651816,0.4591,2834.6,2832.8,0.4946]
[1763658652022,0.47972922,2834.5,2832.3,0.689]
[1763658652223,0.47972922,2834.5,2832.0,1.0]
[1763658652224,0.90699264,2833.9,2832.0,1.0]
[1763658652458,0.1,2832.6,2832.0,1.0]
[1763658653364,0.89528137,2834.2,2832.1,0.689]
[1763658653365,0.1,2832.9,2832.1,0.689]
[1763658653933,0.1,2832.9,2832.1,0.1944]
[1763658654127,0.42316107,2833.7,2832.1,0.689]
[1763658654331,0.1,2832.8,2832.0,1.0]
[1763658654553,0.31046107,2833.5,2832.0,1.0]
[1763658654778,0.56139363,2833.5,2832.0,1.0]
[1763658654954,4.49695414,2833.5,2832.0,1.0]
[1763658655156,0.1,2832.5,2832.0,1.0]
[1763658655848,0.1,2832.1,2832.0,1.0]
[1763658656249,0.71997663,2833.1,2832.0,1.0]
[1763658656450,0.1,2832.2,2832.0,1.0]
[1763658656979,0.1,2832.1,2832.0,1.0]
[1763658657392,0.71879981,2832.9,2832.0,1.0]
[1763658657598,0.1,2832.1,2832.0,1.0]
[1763658657907,0.55398508,2833.2,2832.0,1.0]
[1763658657908,0.1,2832.5,2832.0,1.0]
[1763658658056,0.1,2832.7,2832.0,1.0]
[1763658658245,0.1,2832.5,2832.0,1.0]
[1763658658650,0.1,2833.0,2832.1,0.66490948]
[1763658658890,0.1,2832.4,2832.0,1.0]
[1763658659539,0.1453,2832.6,2832.0,1.0]
[1763658659651,0.1,2832.1,2832.0,1.0]
[1763658659852,0.1453,2832.6,2832.0,1.0]
[1763658660089,0.1,2832.2,2832.0,1.0]
[1763658660247,0.71845055,2833.0,2832.0,1.0]
[1763658660593,0.1,2832.3,2832.0,1.0]
[1763658660890,4.70706945,2833.3,2832.0,1.0]
[1763658660891,0.71847725,2833.1,2832.0,1.001]
[1763658661088,0.1127,2833.7,2832.0,1.001]
[1763658661253,0.1,2832.7,2832.0,1.001]
[1763658661583,0.19217012,2833.6,2832.0,1.001]
[1763658661584,0.1,2832.4,2832.0,1.001]
[1763658661800,0.405504,2833.1,2832.0,1.001]
[1763658661961,0.1,2832.1,2832.0,1.001]
[1763658662165,0.1,2832.1,2832.0,0.001]
[1763658662383,0.864604,2832.1,2831.7,0.001]
[1763658662581,0.864604,2832.1,2830.3,0.4946]
[1763658662582,0.1,2831.6,2830.3,0.4946]
[1763658662762,0.1,2831.2,2830.3,0.4946]
[1763658662963,0.71847785,2832.2,2830.4,0.135]
[1763658663177,0.1,2831.2,2830.0,0.689]
[1763658663383,0.405504,2831.6,2829.6,0.135]
[1763658663552,0.405504,2831.6,2829.5,0.4946]
[1763658663553,0.1,2830.2,2829.5,0.4946]
[1763658663754,1.35438137,2831.5,2829.6,0.03534068]
[1763658664001,0.45917254,2831.5,2829.7,0.4946]
[1763658664155,0.1,2831.9,2830.0,0.90699264]
[1763658664350,0.71816152,2832.6,2830.0,0.90699264]
[1763658664589,0.1,2831.8,2830.1,0.4946]
[1763658664887,0.1,2831.6,2830.1,0.4946]
[1763658665094,1.17726152,2832.7,2830.5,0.90699264]
[1763658665264,0.1,2832.0,2830.6,1.33933469]
[1763658665668,0.1,2832.0,2830.7,0.4946]
[1763658665856,0.71829865,2832.9,2830.8,6.63118392]
[1763658666057,0.4591,2833.8,2831.9,0.1944]
[1763658666400,0.89528137,2833.0,2830.9,0.689]
[1763658666558,7.99935544,2833.4,2830.9,0.689]
[1763658666559,0.405504,2832.6,2830.9,0.689]
[1763658666760,0.1,2831.4,2830.9,0.689]
[1763658666961,1.92573772,2832.4,2830.9,0.1944]
[1763658667212,1.92573772,2832.4,2830.5,0.135]
[1763658667213,0.1,2830.8,2830.5,0.135]
[1763658667438,1.21907858,2832.3,2829.5,0.4946]
[1763658667439,1.30078537,2831.7,2829.5,0.4946]
[1763658667639,1.30078537,2831.5,2829.5,0.4946]
[1763658667808,0.31208594,2831.4,2829.5,0.4946]
[1763658668004,0.1,2830.7,2829.5,0.4946]
[1763658668447,0.31208594,2831.4,2829.9,6.19035422]
[1763658668707,0.6339,2832.2,2830.0,0.4956]
[1763658668708,0.1,2830.9,2830.0,0.4956]
[1763658668937,0.31192877,2831.6,2830.0,0.4956]
[1763658669147,0.31192877,2832.1,2830.0,0.4956]
[1763658669352,0.80052877,2832.1,2830.0,0.4956]
[1763658669648,0.31192877,2832.1,2830.2,6.19035422]
[1763658669940,0.1,2831.3,2830.3,1.11463542]
[1763658670142,0.1,2831.8,2830.4,0.4956]
[1763658670356,0.89528137,2832.8,2830.4,0.4956]
[1763658670357,0.1,2831.9,2831.2,0.1947]
[1763658670642,0.1,2832.2,2831.2,0.1947]
[1763658670849,1.03194608,2832.8,2831.2,0.6903]
[1763658671017,0.31192877,2832.7,2831.2,0.6903]
[1763658671219,0.1,2831.7,2831.2,0.6903]
[1763658671655,0.1,2831.7,2830.5,1.04199264]
[1763658671656,0.1453,2832.0,2830.7,0.1947]
[1763658671952,0.1,2831.1,2830.7,0.1947]
[1763658672167,0.31192877,2832.1,2830.8,0.4956]
[1763658672312,0.31192877,2832.2,2830.8,0.4956]
[1763658672509,1.21010191,2832.5,2830.3,0.1947]
[1763658672510,1.03343068,2832.4,2830.3,0.1947]
[1763658672738,1.30552564,2831.9,2829.8,0.4956]
[1763658673046,0.1,2830.3,2829.3,0.4956]
[1763658673349,0.1,2830.4,2829.3,0.4956]
[1763658673551,1.03343068,2831.3,2829.3,0.4956]
[1763658673756,0.90002164,2831.4,2829.3,0.4956]
[1763658673757,0.1,2830.3,2829.3,0.4956]
[1763658674057,0.31192877,2831.3,2829.3,0.4956]
[1763658674216,0.1,2830.5,2829.4,0.66859542]
[1763658674422,0.1,2830.4,2829.5,0.4956]
[1763658674651,0.90699264,2831.2,2829.5,0.4956]
[1763658674815,0.1,2830.2,2829.5,0.4956]
[1763658675014,1.03218617,2831.1,2829.5,0.4956]
[1763658675318,0.1,2830.0,2829.5,0.4956]
[1763658675542,0.1,2830.2,2829.4,0.4956]
[1763658675751,0.1,2830.3,2829.4,0.4956]
[1763658676067,0.1,2830.0,2829.4,0.4956]
[1763658676268,0.31192877,2830.9,2829.4,0.4956]
[1763658676269,0.4886,2830.8,2829.4,0.4956]
[1763658676420,0.68953792,2830.8,2829.4,0.4956]
[1763658676756,0.31192877,2830.7,2829.4,0.4956]
[1763658676967,0.1,2830.3,2829.4,0.4956]
[1763658677253,2.42799282,2831.2,2829.4,0.4956]
[1763658677254,0.1,2829.9,2829.4,0.4956]
[1763658677471,0.405504,2831.0,2829.5,0.03534193]
[1763658677472,0.1,2830.5,2829.5,0.03534193]
[1763658677646,0.90699264,2831.5,2829.2,6.19035422]
[1763658677647,0.1453,2831.8,2829.7,6.19035422]
[1763658677960,0.1453,2831.8,2829.8,0.67212949]
[1763658677961,0.1,2831.1,2829.8,0.67212949]
[1763658678145,0.31261137,2831.6,2829.6,0.4956]
[1763658678452,0.1,2830.7,2829.7,0.4956]
[1763658678656,0.1,2831.4,2829.7,0.4956]
[1763658678956,0.1,2830.8,2829.7,0.4956]
[1763658679260,0.31261137,2831.5,2829.7,0.4956]
[1763658679568,0.1,2831.0,2829.7,0.4956]
[1763658679725,0.1,2830.5,2829.2,0.4956]
[1763658679925,0.405504,2831.6,2827.9,0.1944]
[1763658679926,0.3117586,2831.2,2829.3,0.4956]
[1763658680137,0.3117586,2831.4,2829.3,0.4956]
[1763658680339,0.26073729,2831.3,2829.3,0.4956]
[1763658680628,4.43931337,2831.0,2829.0,0.69]
[1763658680842,0.1,2829.7,2829.6,0.001]
[1763658681454,0.4886,2830.6,2829.6,0.001]
[1763658681954,0.1296,2829.7,2829.6,0.001]
[1763658682255,0.2296,2829.7,2829.6,0.001]
[1763658682451,1.03078167,2830.4,2829.6,0.001]
[1763658682630,0.1,2829.7,2829.6,0.001]
[1763658683153,0.1296,2830.7,2829.6,0.001]
[1763658683364,0.1,2829.8,2829.6,0.001]
[1763658683665,0.90699264,2831.2,2829.6,0.001]
[1763658683666,0.1296,2831.3,2829.6,0.001]
[1763658683826,0.4886,2831.2,2829.6,0.4966]
[1763658684027,1.05508754,2831.2,2829.6,0.4966]
[1763658684343,0.1,2830.6,2829.6,0.4966]
[1763658684660,0.1,2831.0,2829.6,0.4966]
[1763658684833,0.1,2830.7,2829.6,0.4966]
[1763658685233,0.1,2830.8,2829.6,0.4966]
[1763658685432,0.1296,2831.3,2829.6,0.4966]
[1763658685656,0.31170398,2831.5,2829.7,0.44084343]
[1763658685657,0.41170398,2831.5,2829.7,0.44084343]
[1763658685876,0.002,2832.2,2831.0,6.19035422]
[1763658686083,0.002,2832.2,2831.7,0.1947]
[1763658686383,0.1,2832.1,2831.7,0.1947]
[1763658686691,0.1,2831.9,2831.0,0.1947]
[1763658686898,0.1,2831.5,2830.9,0.1947]
[1763658687201,0.1,2831.8,2831.1,0.4956]
[1763658687490,0.31153876,2832.0,2830.4,0.6306]
[1763658687706,0.1,2831.1,2830.4,0.4956]
[1763658688004,0.1,2830.6,2829.9,0.4956]
[1763658688295,0.71772703,2832.0,2828.4,1.85954632]
[1763658688296,0.1,2830.0,2829.2,0.4956]
[1763658688505,0.1,2829.8,2829.2,0.4956]
[1763658688706,0.1,2829.7,2828.6,0.4956]
[1763658689001,0.1,2830.0,2829.1,0.4956]
[1763658689149,0.1,2829.7,2829.1,0.4956]
[1763658689354,0.1296,2830.6,2829.1,0.4956]
[1763658689622,0.31153876,2830.8,2829.7,0.4956]
[1763658689791,0.1,2829.9,2829.1,0.4956]
[1763658689987,0.1,2829.7,2828.8,0.4956]
[1763658690288,0.1,2829.7,2828.5,0.6903]
[1763658690452,0.4886,2830.3,2828.4,0.6306]
[1763658690651,0.1,2829.7,2828.4,0.6306]
[1763658691162,0.5886,2829.7,2828.4,0.135]
[1763658691364,0.90013876,2829.7,2828.4,0.135]
[1763658692136,0.90013876,2829.7,2827.9,0.69]
[1763658692253,0.90013876,2829.7,2827.3,6.19035422]
[1763658692254,0.90013876,2829.7,2826.9,0.4561]
[1763658692255,6.19035422,2829.2,2826.9,0.4561]
[1763658692453,0.405504,2828.8,2826.9,0.4561]
[1763658692655,0.1285,2828.7,2826.9,0.4561]
[1763658692854,0.4668,2829.3,2826.9,0.4561]
[1763658693062,0.1,2828.0,2826.9,0.4561]
[1763658693271,8.40637622,2829.2,2826.9,0.4561]
[1763658693272,1.02839284,2829.1,2826.9,0.4561]
[1763658693456,0.1,2828.4,2827.2,0.90699264]
[1763658693672,0.1285,2829.4,2827.4,0.405504]
[1763658693890,0.1,2828.8,2827.4,0.405504]
[1763658694193,0.1285,2829.4,2827.5,0.4561]
[1763658694354,0.1,2828.6,2827.5,0.4561]
[1763658694778,0.5953,2829.4,2827.5,0.4561]
[1763658694779,0.1,2828.4,2827.5,0.4561]
[1763658694979,0.5953,2829.4,2827.5,7.99017222]
[1763658694980,0.1285,2829.4,2827.5,7.99017222]
[1763658695193,0.1,2829.1,2828.3,0.1935]
[1763658695395,0.1285,2829.3,2827.2,0.135]
[1763658695552,0.1,2827.8,2826.9,0.4561]
[1763658695758,0.1,2827.8,2827.0,0.4561]
[1763658696679,0.4668,2829.0,2827.0,0.4561]
[1763658696888,0.55480978,2827.8,2827.0,0.4561]
[1763658697065,0.1,2827.8,2827.0,0.4561]
[1763658697289,0.4668,2828.5,2827.0,0.4561]
[1763658697587,0.4668,2828.5,2826.6,0.1947]
[1763658697588,0.1,2827.6,2826.6,0.1947]
[1763658697801,0.1,2827.6,2826.6,0.6508]
[1763658698108,0.1,2827.3,2826.6,0.6508]
[1763658698277,0.1296,2828.0,2826.6,0.1947]
[1763658698478,0.1,2827.2,2826.2,0.5937]
[1763658698679,0.1296,2828.0,2826.7,0.1838]
[1763658698906,0.1296,2828.0,2825.0,1.0]
[1763658698907,0.1,2827.0,2826.0,0.4587]
[1763658699078,0.1,2827.0,2825.1,0.1947]
[1763658699079,0.129,2826.1,2824.6,0.17763944]
[1763658699501,0.12,2826.0,2825.1,0.03539697]
[1763658699830,0.12,2826.0,2824.0,0.135]
[1763658699979,0.12,2826.0,2825.0,1.4587]
[1763658700178,0.12,2826.0,2825.7,0.4587]
[1763658700940,0.12,2826.0,2825.2,0.4587]
[1763658701084,0.1,2825.9,2825.2,0.4587]
[1763658701419,0.12,2826.0,2825.0,1.0]
[1763658701582,1.40409264,2825.9,2825.0,1.0]
[1763658701787,0.1,2825.7,2825.0,1.0]
[1763658701979,0.1,2825.1,2825.0,1.0]
[1763658702222,0.1,2825.1,2825.0,0.6599]
[1763658702380,0.5633,2825.1,2825.0,0.6599]
[1763658702581,1.45551302,2825.1,2825.0,0.6261]
[1763658702805,6.30012435,2825.1,2825.0,0.6261]
[1763658703116,3.03039168,2825.1,2825.0,0.6261]
[1763658703321,2.76361628,2825.1,2825.0,0.6261]
[1763658703481,0.405504,2825.0,2822.9,0.3030303]
[1763658703684,0.4295,2825.0,2823.0,0.4587]
[1763658704079,0.82098009,2824.9,2823.0,0.4587]
[1763658704289,0.4009696,2824.9,2823.0,0.4587]
[1763658704481,0.1,2824.4,2823.0,0.4587]
[1763658704767,1.10908103,2825.9,2823.0,0.4587]
[1763658704965,0.4295,2825.9,2823.1,7.53407222]
[1763658705153,0.1,2825.3,2823.3,7.53407222]
[1763658705338,0.90699264,2825.6,2823.0,0.4587]
[1763658705669,0.90699264,2824.6,2822.9,0.3030303]
[1763658705880,0.1,2823.0,2822.9,0.3030303]
[1763658706176,0.4295,2824.5,2822.9,0.3030303]
[1763658706334,0.1,2823.2,2822.9,0.3030303]
[1763658706528,0.405504,2824.3,2822.9,0.3030303]
[1763658706731,0.90699264,2823.9,2822.9,0.3030303]
[1763658706974,0.1,2823.0,2822.9,0.3030303]
[1763658707363,1.40363547,2823.0,2822.9,0.1825303]
[1763658707556,1.40363547,2823.0,2820.8,0.1838]
[1763658707557,0.1,2821.7,2820.8,0.1838]
[1763658708070,0.405504,2822.4,2820.8,0.1838]
[1763658708280,0.405504,2821.9,2820.2,0.1838]
[1763658708507,0.4369941,2822.3,2820.2,7.71787222]
[1763658708508,0.4591141,2822.3,2820.2,7.71787222]
[1763658708709,0.4591141,2822.2,2820.8,0.4587]
[1763658708864,0.309,2822.6,2820.2,7.71787222]
[1763658708865,0.1,2821.5,2820.7,0.4587]
[1763658709065,0.309,2822.9,2821.1,0.4587]
[1763658709412,0.1,2821.6,2820.7,0.4587]
[1763658709720,1.62149664,2822.8,2820.3,0.4587]
[1763658709721,0.405504,2822.7,2820.3,0.4587]
[1763658710018,0.1,2821.1,2820.3,0.4587]
[1763658710306,0.405504,2822.5,2820.3,0.4587]
[1763658710600,0.1,2821.1,2820.7,0.4587]
[1763658710773,0.1,2821.1,2820.2,0.4587]
[1763658711176,0.309,2821.9,2820.2,0.4587]
[1763658711364,5.26921693,2824.3,2820.2,7.53407222]
[1763658711365,0.309,2822.9,2820.2,7.53407222]
[1763658711562,0.1,2822.5,2821.1,0.4587]
[1763658711867,0.309,2822.9,2821.1,0.4587]
[1763658712178,0.1,2822.2,2821.1,0.4587]
[1763658712382,0.69542944,2823.9,2821.1,0.4587]
[1763658712383,0.1,2822.6,2821.1,0.4587]
[1763658712581,0.309,2823.8,2821.2,3.50508237]
[1763658712786,0.309,2823.7,2821.2,3.50508237]
[1763658712999,0.309,2823.7,2821.3,1.36569264]